bitfinex-derivatives/quotes_SOLF0:USTF0_20230102
["timestamp","ask_amount","ask_price","bid_price","bid_amount"]
[1672647976791,5.0,11.263,11.246,5.0]
[1672647977001,13.3,11.264,11.246,5.0]
[1672647977206,5.0,11.271,11.249,50.0]
[1672647977426,52.3233,11.285,11.267,13.29]
[1672647977629,52.3233,11.285,11.269,13.34]
[1672647977845,5.0,11.279,11.269,13.34]
[1672647978054,5.0,11.279,11.27,5.0]
[1672647978263,5.0,11.284,11.27,5.0]
[1672647978888,5.0,11.284,11.26,5.0]
[1672647979213,13.3,11.279,11.263,13.34]
[1672647979418,5.0,11.278,11.266,13.34]
[1672647979622,5.0,11.284,11.267,5.0]
[1672647979830,5.0,11.284,11.269,13.34]
[1672647980048,5.0,11.284,11.266,13.34]
[1672647980259,5.0,11.278,11.26,18.34]
[1672647980469,5.0,11.278,11.267,3.25806619]
[1672647980679,5.0,11.278,11.261,4.70960755]
[1672647981409,5.0,11.278,11.262,3.25818805]
[1672647982255,5.0,11.278,11.26,13.34]
[1672647982465,5.0,11.278,11.261,5.0]
[1672647982882,13.25,11.275,11.261,5.0]
[1672647983094,5.0,11.274,11.259,5.0]
[1672647983624,5.0,11.274,11.257,18.31]
[1672647984040,5.0,11.274,11.259,5.0]
[1672647984989,13.25,11.275,11.259,5.0]
[1672647985196,18.29,11.278,11.26,13.34]
[1672647985405,18.29,11.278,11.261,5.0]
[1672647986041,13.23,11.275,11.259,5.0]
[1672647986251,13.23,11.275,11.258,5.0]
[1672647986566,13.25,11.272,11.257,5.0]
[1672647986775,13.25,11.272,11.259,3.26016954]
[1672647987198,13.25,11.272,11.258,3.26016954]
[1672647987401,5.0,11.274,11.258,3.26016954]
[1672647988353,13.29,11.272,11.258,3.26016954]
[1672647988566,5.0,11.271,11.258,3.26016954]
[1672647988880,5.0,11.271,11.256,3.26016954]
[1672647989824,5.0,11.271,11.256,16.54016954]
[1672647990031,5.0,11.271,11.257,5.0]
[1672647990242,54.385,11.274,11.257,8.26016954]
[1672647990770,49.385,11.274,11.26,5.0]
[1672647990981,49.385,11.274,11.26,18.17]
[1672647991295,5.0,11.273,11.26,5.0]
[1672647992556,5.0,11.278,11.26,5.0]
[1672647992769,18.29,11.278,11.262,13.29]
[1672647992973,5.0,11.278,11.263,5.0]
[1672647993396,16.3004678,11.277,11.262,13.29]
[1672647993609,5.0,11.276,11.262,13.29]
[1672647994030,5.0,11.276,11.258,13.29]
[1672647994245,13.29,11.267,11.251,5.0]
[1672647994446,5.0,11.266,11.259,3.26025154]
[1672647994770,5.0,11.266,11.251,4.70864222]
[1672647995495,5.0,11.266,11.249,5.0]
[1672647996131,52.6953,11.27,11.25,3.26218611]
[1672647996344,57.6953,11.274,11.256,13.29]
[1672647996553,52.6953,11.273,11.257,5.0]
[1672647996766,5.0,11.272,11.257,5.0]
[1672647997078,5.0,11.272,11.258,3.26218611]
[1672647997498,18.29,11.282,11.262,13.17]
[1672647997707,5.0,11.277,11.263,5.0]
[1672647999388,5.0,11.277,11.265,13.29]
[1672648000539,18.29,11.282,11.265,13.29]
[1672648000755,18.29,11.282,11.259,5.0]
[1672648000756,5.0,11.282,11.268,13.29]
[1672648000965,5.0,11.282,11.269,5.0]
[1672648001491,5.0,11.282,11.268,13.29]
[1672648002122,13.25,11.28,11.249,50.0]
[1672648002334,55.277,11.279,11.261,13.17]
[1672648002644,5.0,11.278,11.262,5.0]
[1672648002857,21.29988815,11.278,11.262,5.0]
[1672648003062,21.29988815,11.278,11.264,13.29]
[1672648003278,5.0,11.278,11.265,5.0]
[1672648004220,5.0,11.278,11.264,13.29]
[1672648004643,5.0,11.278,11.265,3.25835824]
[1672648004849,5.0,11.278,11.266,5.0]
[1672648005272,5.0,11.278,11.264,13.29]
[1672648005484,5.0,11.278,11.261,13.29]
[1672648006008,16.30062912,11.277,11.261,13.29]
[1672648006423,5.0,11.276,11.261,13.29]
[1672648006637,5.0,11.276,11.265,5.0]
[1672648006842,5.0,11.278,11.267,13.29]
[1672648007585,13.29,11.292,11.273,13.29]
[1672648007796,13.29,11.289,11.274,5.0]
[1672648008110,5.0,11.288,11.265,5.0]
[1672648008319,52.912,11.287,11.265,5.0]
[1672648008533,13.29,11.285,11.267,13.29]
[1672648008741,5.0,11.284,11.267,13.29]
[1672648009157,13.25,11.282,11.264,13.29]
[1672648009369,5.0,11.281,11.265,5.0]
[1672648009578,5.0,11.281,11.267,13.29]
[1672648009895,5.0,11.281,11.268,5.0]
[1672648010317,5.0,11.281,11.267,13.29]
[1672648011368,5.0,11.281,11.267,13.06331461]
[1672648011894,5.0,11.282,11.267,13.06331461]
[1672648013054,5.0,11.284,11.267,13.06331461]
[1672648013368,57.8883,11.288,11.27,13.29]
[1672648013570,57.8883,11.288,11.271,5.0]
[1672648013785,16.28875818,11.287,11.271,5.0]
[1672648013994,5.0,11.286,11.271,5.0]
[1672648014518,5.0,11.286,11.27,13.29]
[1672648014731,16.28875818,11.285,11.27,13.29]
[1672648014938,5.0,11.284,11.27,13.29]
[1672648015574,5.0,11.284,11.271,5.0]
[1672648015782,5.0,11.286,11.273,13.24]
[1672648016206,52.8883,11.288,11.274,5.0]
[1672648016416,5.0,11.292,11.277,13.29]
[1672648017890,18.29,11.295,11.277,13.29]
[1672648018308,18.29,11.295,11.278,5.0]
[1672648018309,16.27898383,11.293,11.278,5.0]
[1672648018521,5.0,11.292,11.278,5.0]
[1672648019677,5.0,11.295,11.28,13.29]
[1672648019890,5.0,11.297,11.281,5.0]
[1672648020097,16.27891487,11.294,11.281,5.0]
[1672648020312,5.0,11.293,11.281,5.0]
[1672648020519,5.0,11.293,11.28,13.29]
[1672648021255,5.0,11.293,11.274,5.0]
[1672648021256,13.27,11.289,11.268,13.29]
[1672648021462,13.27,11.289,11.269,5.0]
[1672648021778,5.0,11.288,11.271,13.29]
[1672648021989,21.27891487,11.288,11.272,5.0]
[1672648022196,34.56891487,11.288,11.272,5.0]
[1672648022408,16.27891487,11.287,11.272,5.0]
[1672648022829,5.0,11.286,11.268,61.5925]
[1672648023043,13.29,11.284,11.268,13.29]
[1672648023249,13.29,11.282,11.265,13.29]
[1672648023459,13.29,11.282,11.253,66.65]
[1672648023460,13.29,11.276,11.257,13.29]
[1672648023664,13.29,11.276,11.258,5.0]
[1672648023882,5.0,11.275,11.258,8.2596391]
[1672648024194,5.0,11.275,11.259,3.2596391]
[1672648024400,5.0,11.275,11.26,5.0]
[1672648024609,5.0,11.275,11.261,13.29]
[1672648024820,5.0,11.278,11.263,13.17]
[1672648025036,5.0,11.278,11.264,5.0]
[1672648025350,4.92360098,11.278,11.265,5.0]
[1672648025557,4.92360098,11.278,11.265,8.2596391]
[1672648025979,4.92360098,11.278,11.266,3.2596391]
[1672648026612,4.92360098,11.278,11.264,3.2596391]
[1672648026927,4.92360098,11.278,11.265,5.0]
[1672648027348,4.92360098,11.278,11.266,3.2596391]
[1672648028501,4.92360098,11.278,11.265,3.2596391]
[1672648028710,4.92360098,11.278,11.267,3.2596391]
[1672648029128,4.92360098,11.278,11.265,3.2596391]
[1672648029547,4.92360098,11.278,11.262,4.82970195]
[1672648029762,5.0,11.275,11.258,18.29]
[1672648030603,5.0,11.275,11.259,3.25990126]
[1672648031860,5.0,11.275,11.26,5.0]
[1672648032285,5.0,11.275,11.261,3.25990126]
[1672648033756,5.0,11.275,11.26,3.25990126]
[1672648034283,5.0,11.275,11.259,3.25990126]
[1672648034284,13.29,11.273,11.259,3.25990126]
[1672648034590,5.0,11.272,11.256,8.25990126]
[1672648034800,5.0,11.272,11.256,3.25990126]
[1672648035010,5.0,11.272,11.255,13.29]
[1672648035011,5.0,11.272,11.257,3.25990126]
[1672648035220,5.0,11.272,11.258,5.0]
[1672648035434,5.0,11.272,11.259,3.25990126]
[1672648037011,5.0,11.275,11.258,13.29]
[1672648037222,51.7051,11.274,11.259,5.0]
[1672648037432,5.0,11.273,11.259,8.25990126]
[1672648037643,5.0,11.273,11.259,3.25990126]
[1672648037851,5.0,11.273,11.26,3.25990126]
[1672648038271,5.0,11.273,11.259,3.25990126]
[1672648041947,13.29,11.268,11.25,13.24]
[1672648042157,5.0,11.267,11.251,5.0]
[1672648042370,5.0,11.267,11.251,8.2601692]
[1672648042893,58.1842,11.267,11.251,5.0]
[1672648043106,58.1842,11.267,11.253,13.29]
[1672648043420,53.1842,11.267,11.256,0.11894376]
[1672648043629,5.0,11.266,11.256,0.11894376]
[1672648044990,53.1842,11.267,11.256,0.11894376]
[1672648045202,5.0,11.266,11.256,0.11894376]
[1672648046360,5.0,11.27,11.256,0.11894376]
[1672648046563,5.0,11.271,11.256,13.40894376]
[1672648046880,5.0,11.271,11.257,5.0]
[1672648047298,5.0,11.271,11.258,3.26022051]
[1672648048250,5.0,11.271,11.257,3.26022051]
[1672648048457,5.0,11.271,11.259,3.26022051]
[1672648048667,5.0,11.271,11.258,4.70939938]
[1672648048878,5.0,11.271,11.257,0.83179491]
[1672648049512,5.0,11.271,11.257,4.09194765]
[1672648049721,5.0,11.271,11.257,3.26015274]
[1672648050555,5.0,11.271,11.258,5.0]
[1672648050768,5.0,11.271,11.257,3.26015274]
[1672648058444,51.69902718,11.272,11.257,3.26015274]
[1672648058651,5.0,11.271,11.257,3.26015274]
[1672648059071,5.0,11.271,11.258,0.11908736]
[1672648059492,5.0,11.271,11.258,5.11908736]
[1672648060119,5.0,11.271,11.259,3.26015274]
[1672648060335,51.5794,11.272,11.259,3.26015274]
[1672648060857,51.5794,11.272,11.26,5.0]
[1672648061384,5.0,11.271,11.259,16.55015274]
[1672648061594,5.0,11.271,11.259,13.29]
[1672648061803,5.0,11.271,11.258,0.11908736]
[1672648062014,5.0,11.271,11.26,3.26006292]
[1672648062437,5.0,11.271,11.258,0.11908736]
[1672648062749,4.78163838,11.271,11.258,0.11908736]
[1672648062958,4.78163838,11.271,11.258,3.37915028]
[1672648063378,4.78163838,11.271,11.258,0.11908736]
[1672648064324,4.78163838,11.271,11.258,3.37915028]
[1672648064742,4.78163838,11.271,11.258,0.11908736]
[1672648066532,4.78163838,11.271,11.258,3.37915028]
[1672648068847,4.78163838,11.271,11.253,13.22]
[1672648069056,4.78163838,11.271,11.239,636.0]
[1672648069057,13.3,11.263,11.245,63.1348]
[1672648069269,54.6306,11.262,11.254,3.2619013]
[1672648069478,13.18,11.26,11.236,53.08]
[1672648069679,13.18,11.26,11.246,3.26229248]
[1672648069895,5.0,11.259,11.246,3.26229248]
[1672648070104,5.0,11.259,11.244,3.26229248]
[1672648070627,5.0,11.259,11.243,8.26229248]
[1672648070838,5.0,11.259,11.245,13.3]
[1672648071157,5.0,11.259,11.246,5.0]
[1672648071577,5.0,11.259,11.247,3.26229248]
[1672648071992,5.0,11.259,11.246,3.26229248]
[1672648072420,5.0,11.259,11.244,3.26229248]
[1672648073049,5.0,11.261,11.245,18.3]
[1672648073257,5.0,11.261,11.246,5.0]
[1672648073462,5.0,11.261,11.246,8.26229248]
[1672648073887,5.0,11.261,11.247,3.26229248]
[1672648075676,0.06628724,11.247,11.246,8.26229248]
[1672648075884,5.0,11.261,11.246,3.26229248]
[1672648078617,18.3,11.261,11.246,3.26229248]
[1672648079357,18.3,11.261,11.245,3.26229248]
[1672648079567,58.3927,11.26,11.245,3.26229248]
[1672648079771,13.27,11.254,11.236,13.3]
[1672648079981,5.0,11.253,11.239,63.3]
[1672648080300,5.0,11.253,11.24,5.0]
[1672648080720,5.0,11.253,11.241,3.26294515]
[1672648081140,5.0,11.253,11.24,3.26294515]
[1672648084605,5.0,11.254,11.24,3.26294515]
[1672648087018,13.3,11.257,11.241,5.0]
[1672648087235,5.0,11.263,11.245,13.2]
[1672648087236,48.9775,11.26,11.245,13.2]
[1672648087547,5.0,11.259,11.245,13.2]
[1672648087964,5.0,11.259,11.246,3.26294515]
[1672648088386,5.0,11.259,11.243,3.26294515]
[1672648088597,5.0,11.257,11.243,3.26294515]
[1672648089333,5.0,11.257,11.245,13.3]
[1672648089650,5.0,11.257,11.246,3.26294515]
[1672648091221,5.0,11.257,11.245,5.0]
[1672648091643,5.0,11.257,11.246,3.26294515]
[1672648092905,5.0,11.257,11.244,3.26294515]
[1672648093533,4.8030533,11.257,11.245,5.0]
[1672648093743,4.8030533,11.257,11.246,3.26294515]
[1672648093949,5.0,11.259,11.246,3.26294515]
[1672648095112,5.0,11.259,11.244,3.26294515]
[1672648095426,5.0,11.257,11.244,3.26294515]
[1672648095843,5.0,11.254,11.237,13.24]
[1672648096050,5.0,11.254,11.241,3.26453032]
[1672648096474,5.0,11.254,11.239,5.0]
[1672648097950,5.0,11.254,11.238,50.3348]
[1672648098581,5.0,11.252,11.238,50.3348]
[1672648101525,5.0,11.252,11.237,13.24]
[1672648102471,18.25,11.252,11.234,13.34]
[1672648102786,5.0,11.25,11.235,5.0]
[1672648103415,5.0,11.25,11.234,13.34]
[1672648103836,48.8423,11.249,11.234,13.34]
[1672648104044,48.8423,11.249,11.231,48.4542]
[1672648104045,13.28,11.246,11.231,48.4542]
[1672648104255,13.28,11.246,11.228,18.24]
[1672648104568,5.0,11.245,11.228,18.24]
[1672648104784,48.8423,11.244,11.228,69.3709]
[1672648105094,5.0,11.243,11.228,64.3709]
[1672648105303,5.0,11.242,11.226,5.0]
[1672648105510,56.3593,11.242,11.226,5.0]
[1672648105830,5.0,11.241,11.225,65.2651]
[1672648106144,56.3593,11.241,11.226,5.0]
[1672648107621,5.0,11.245,11.228,13.28]
[1672648107932,5.0,11.245,11.229,5.0]
[1672648108348,53.4813,11.245,11.229,5.0]
[1672648110142,48.4813,11.244,11.229,5.0]
[1672648110456,5.0,11.243,11.228,13.28]
[1672648110666,53.4813,11.243,11.228,13.28]
[1672648110876,53.4813,11.243,11.229,5.0]
[1672648111926,53.4813,11.243,11.228,13.28]
[1672648115499,5.0,11.241,11.228,13.28]
[1672648116757,53.3649,11.241,11.228,13.28]
[1672648116963,48.3649,11.241,11.229,5.0]
[1672648117384,5.0,11.24,11.228,13.28]
[1672648119603,5.0,11.24,11.225,52.0151]
[1672648119807,5.0,11.24,11.226,5.0]
[1672648120123,5.0,11.24,11.224,13.34]
[1672648120334,5.0,11.238,11.222,51.7487]
[1672648120966,18.34,11.238,11.222,51.7487]
[1672648121171,5.0,11.236,11.223,5.0]
[1672648121804,13.3,11.234,11.216,13.46]
[1672648122021,13.34,11.232,11.217,5.0]
[1672648122226,5.0,11.231,11.217,5.0]
[1672648123593,5.0,11.232,11.219,13.34]
[1672648123805,5.0,11.232,11.22,5.0]
[1672648124436,55.4997,11.233,11.219,13.34]
[1672648125062,13.34,11.231,11.214,51.7487]
[1672648125276,5.0,11.23,11.215,5.0]
[1672648125489,5.0,11.23,11.216,13.34]
[1672648125698,5.0,11.232,11.219,13.34]
[1672648125911,5.0,11.232,11.22,5.0]
[1672648126537,5.0,11.232,11.219,13.34]
[1672648127059,5.0,11.233,11.219,13.34]
[1672648127270,5.0,11.233,11.22,5.0]
[1672648127804,5.0,11.236,11.22,5.0]
[1672648128112,5.0,11.236,11.22,57.7652]
[1672648129378,5.0,11.236,11.22,52.7652]
[1672648130956,58.3837,11.236,11.22,52.7652]
[1672648131584,53.3837,11.235,11.22,52.7652]
[1672648131796,5.0,11.234,11.22,52.7652]
[1672648132008,58.3837,11.234,11.22,52.7652]
[1672648134634,5.0,11.236,11.22,52.7652]
[1672648135475,56.9252,11.236,11.22,52.7652]
[1672648136210,5.0,11.234,11.22,52.7652]
[1672648137574,13.34,11.244,11.226,13.34]
[1672648137780,5.11905903,11.256,11.227,66.8]
[1672648137994,50.0,11.252,11.227,49.4515]
[1672648138202,55.6232,11.251,11.228,54.4515]
[1672648138411,55.6232,11.251,11.229,49.4515]
[1672648138629,13.34,11.247,11.23,5.0]
[1672648138839,55.6232,11.246,11.23,54.4515]
[1672648139153,5.0,11.245,11.23,54.4515]
[1672648139365,58.2094,11.245,11.23,54.4515]
[1672648139890,58.2094,11.245,11.23,49.4515]
[1672648140100,53.2094,11.244,11.23,49.4515]
[1672648140311,5.0,11.243,11.23,49.4515]
[1672648140628,58.2094,11.243,11.23,49.4515]
[1672648141044,58.2094,11.243,11.231,5.0]
[1672648141358,58.2094,11.243,11.231,18.22]
[1672648141569,5.0,11.243,11.231,18.22]
[1672648142518,5.0,11.243,11.23,49.4515]
[1672648143146,5.0,11.243,11.226,13.34]
[1672648143357,49.978,11.242,11.227,5.0]
[1672648143567,5.0,11.241,11.227,5.0]
[1672648143989,54.978,11.241,11.227,5.0]
[1672648148404,54.978,11.241,11.226,13.34]
[1672648148824,49.9952,11.24,11.226,13.34]
[1672648149033,5.0,11.239,11.226,13.34]
[1672648149242,54.9952,11.239,11.226,13.34]
[1672648151130,54.9952,11.239,11.223,51.2791]
[1672648151336,54.9952,11.238,11.223,51.2791]
[1672648151550,5.0,11.241,11.225,13.28]
[1672648151763,5.0,11.241,11.224,5.0]
[1672648151764,5.0,11.241,11.229,5.0]
[1672648152392,5.0,11.241,11.228,13.24]
[1672648155229,5.0,11.241,11.225,66.1318]
[1672648155439,53.5891,11.24,11.225,66.1318]
[1672648155753,58.5891,11.239,11.225,66.1318]
[1672648155963,5.0,11.238,11.225,66.1318]
[1672648162481,5.0,11.242,11.226,5.0]
[1672648162798,18.34,11.247,11.23,5.0]
[1672648163006,57.9818,11.246,11.23,5.0]
[1672648163631,57.9818,11.246,11.23,54.6323]
[1672648164373,57.9818,11.246,11.23,49.6323]
[1672648164577,57.86898103,11.246,11.231,5.0]
[1672648164794,57.86898103,11.246,11.231,18.28]
[1672648165530,57.86898103,11.246,11.231,13.28]
[1672648165737,57.86898103,11.246,11.232,5.0]
[1672648166475,57.86898103,11.246,11.231,18.28]
[1672648167415,57.86898103,11.246,11.231,13.28]
[1672648167840,57.86898103,11.246,11.232,5.0]
[1672648169627,52.9818,11.246,11.232,5.0]
[1672648169837,5.0,11.253,11.237,13.34]
[1672648170150,50.9792,11.251,11.237,13.34]
[1672648170360,5.0,11.25,11.237,13.34]
[1672648172463,5.0,11.25,11.234,13.34]
[1672648172674,51.0176,11.249,11.235,5.0]
[1672648172887,5.0,11.248,11.235,5.0]
[1672648173092,5.0,11.248,11.234,13.34]
[1672648173303,56.0176,11.248,11.234,13.34]
[1672648175405,5.0,11.248,11.234,13.34]
[1672648177505,5.0,11.25,11.234,13.34]
[1672648177717,5.0,11.25,11.235,5.0]
[1672648179607,5.0,11.25,11.234,13.34]
[1672648180654,5.0,11.25,11.235,5.0]
[1672648180865,5.0,11.253,11.238,13.34]
[1672648181180,5.0,11.253,11.239,5.0]
[1672648182336,5.0,11.255,11.239,5.0]
[1672648182337,5.0,11.255,11.244,13.34]
[1672648182548,54.2776,11.26,11.255,0.085481]
[1672648183486,49.2776,11.26,11.255,0.085481]
[1672648184640,5.0,11.259,11.247,13.34]
[1672648187589,5.0,11.259,11.245,5.0]
[1672648188007,49.2776,11.26,11.245,5.0]
[1672648188424,5.0,11.259,11.245,5.0]
[1672648189272,5.0,11.263,11.247,13.34]
[1672648189586,5.0,11.264,11.251,5.0]
[1672648190216,5.0,11.265,11.251,5.0]
[1672648190428,5.0,11.267,11.253,13.34]
[1672648190631,5.0,11.267,11.254,5.0]
[1672648191260,5.0,11.267,11.253,13.34]
[1672648191897,55.3733,11.267,11.253,13.34]
[1672648192211,50.3733,11.267,11.255,13.34]
[1672648192632,50.3733,11.267,11.256,5.0]
[1672648193580,50.3733,11.267,11.255,13.34]
[1672648195047,0.11888123,11.268,11.259,13.25]
[1672648196946,5.0,11.273,11.259,13.25]
[1672648197363,5.0,11.273,11.256,13.34]
[1672648197574,50.128,11.272,11.257,5.0]
[1672648197782,5.0,11.271,11.257,5.0]
[1672648198305,5.0,11.271,11.256,13.34]
[1672648198519,5.0,11.271,11.252,62.5376]
[1672648198727,5.0,11.271,11.258,0.11988869]
[1672648198728,5.0,11.269,11.258,0.11988869]
[1672648198937,5.0,11.267,11.258,0.11988869]
[1672648199778,57.1304,11.267,11.258,0.11988869]
[1672648201255,52.1304,11.266,11.258,0.11988869]
[1672648201465,18.34,11.265,11.258,0.11988869]
[1672648201878,5.0,11.264,11.258,0.11988869]
[1672648202513,18.28,11.264,11.258,8.869e-05]
[1672648203673,5.0,11.264,11.258,8.869e-05]
[1672648207877,52.048,11.263,11.258,8.869e-05]
[1672648208085,5.0,11.262,11.258,8.869e-05]
[1672648208403,70.388,11.262,11.244,13.34]
[1672648208613,5.0,11.26,11.245,5.0]
[1672648209346,52.048,11.259,11.245,5.0]
[1672648209552,5.0,11.258,11.245,5.0]
[1672648209767,57.048,11.258,11.245,5.0]
[1672648209977,57.048,11.258,11.244,13.34]
[1672648214709,52.048,11.258,11.244,13.34]
[1672648214918,52.048,11.258,11.245,5.0]
[1672648215654,52.114,11.263,11.247,13.34]
[1672648215857,57.114,11.262,11.248,5.0]
[1672648216071,5.0,11.261,11.248,5.0]
[1672648218175,5.0,11.261,11.247,13.34]
[1672648218595,52.114,11.262,11.248,5.0]
[1672648218807,56.2991,11.261,11.248,5.0]
[1672648219017,5.0,11.26,11.248,5.0]
[1672648219229,5.0,11.26,11.247,13.34]
[1672648219437,56.2991,11.26,11.247,13.34]
[1672648220276,56.2991,11.26,11.245,18.34]
[1672648220489,50.8982,11.259,11.245,13.34]
[1672648220908,5.0,11.258,11.245,13.34]
[1672648221223,5.0,11.258,11.246,5.0]
[1672648221435,50.8982,11.259,11.247,13.34]
[1672648221959,50.8982,11.259,11.248,5.0]
[1672648222796,13.34,11.266,11.248,5.0]
[1672648223016,38.12025054,11.27,11.258,50.0]
[1672648223324,38.12025054,11.27,11.259,5.0]
[1672648225006,38.12025054,11.27,11.257,5.0]
[1672648225217,5.0,11.269,11.257,13.22]
[1672648225426,5.0,11.269,11.252,51.0224]
[1672648225427,5.0,11.269,11.255,13.34]
[1672648225634,55.9933,11.269,11.256,5.0]
[1672648226059,55.9933,11.269,11.255,13.34]
[1672648227526,55.9933,11.269,11.252,13.34]
[1672648227527,5.0,11.268,11.252,13.34]
[1672648227739,5.0,11.267,11.252,13.34]
[1672648228048,5.0,11.265,11.252,13.34]
[1672648228576,52.7624,11.266,11.253,5.0]
[1672648228782,52.7624,11.266,11.256,0.11881384]
[1672648229102,5.0,11.265,11.256,0.11881384]
[1672648229942,52.7624,11.266,11.256,0.11881384]
[1672648230364,5.0,11.265,11.256,0.11881384]
[1672648232466,52.7624,11.266,11.256,13.45881384]
[1672648232676,38.12025054,11.27,11.259,13.28]
[1672648232991,38.12025054,11.27,11.26,5.0]
[1672648233410,38.12025054,11.27,11.259,13.28]
[1672648233618,5.0,11.269,11.259,13.28]
[1672648233830,5.0,11.269,11.259,13.18743457]
[1672648234465,5.0,11.269,11.256,13.45881384]
[1672648234778,53.2896,11.269,11.254,5.0]
[1672648235929,5.0,11.267,11.254,5.0]
[1672648236990,53.0944,11.267,11.254,5.0]
[1672648237198,5.0,11.266,11.254,5.0]
[1672648237518,5.0,11.266,11.253,13.34]
[1672648240034,13.3,11.264,11.246,13.34]
[1672648240243,5.0,11.263,11.247,5.0]
[1672648240762,5.0,11.261,11.247,54.1926]
[1672648241923,5.0,11.261,11.249,13.34]
[1672648242134,5.0,11.261,11.25,5.0]
[1672648242550,5.0,11.261,11.249,13.34]
[1672648243395,52.4701,11.262,11.249,13.34]
[1672648244029,5.0,11.261,11.249,13.34]
[1672648245495,5.0,11.265,11.25,5.0]
[1672648245708,5.0,11.265,11.252,13.34]
[1672648245918,5.0,11.265,11.253,5.0]
[1672648246233,5.0,11.265,11.25,5.0]
[1672648246443,5.0,11.265,11.249,18.34]
[1672648247594,54.4426,11.266,11.249,18.34]
[1672648247806,0.11934723,11.269,11.257,13.34]
[1672648248652,5.11934723,11.269,11.257,13.34]
[1672648248861,5.11934723,11.269,11.253,13.25]
[1672648249599,50.0116,11.268,11.253,13.25]
[1672648249907,5.0,11.267,11.253,13.25]
[1672648250122,55.0116,11.267,11.25,18.28]
[1672648250332,50.0116,11.266,11.25,18.28]
[1672648250542,5.0,11.265,11.25,18.28]
[1672648250852,50.0116,11.264,11.25,13.28]
[1672648251064,5.0,11.263,11.25,13.28]
[1672648252007,18.34,11.268,11.25,13.28]
[1672648252008,13.34,11.271,11.251,5.0]
[1672648252223,49.188,11.267,11.254,13.34]
[1672648252538,5.0,11.266,11.254,13.34]
[1672648254325,49.188,11.267,11.254,13.34]
[1672648255054,5.0,11.268,11.254,13.34]
[1672648258101,5.0,11.268,11.252,5.0]
[1672648258314,49.2904,11.267,11.252,5.0]
[1672648258527,5.0,11.266,11.252,5.0]
[1672648258737,5.0,11.266,11.251,13.34]
[1672648260839,50.6984,11.265,11.251,13.34]
[1672648261049,5.0,11.264,11.251,13.34]
[1672648261994,5.0,11.266,11.252,5.0]
[1672648262207,5.0,11.266,11.254,13.22]
[1672648262940,5.0,11.266,11.252,13.34]